bitfinex/quotes_ETHUSD_20220309
["timestamp","ask_amount","ask_price","bid_price","bid_amount"]
[1646867173912,0.02355552,2716.4,2716.1,0.00358153]
[1646867174912,0.02355552,2716.4,2715.4,0.05833599]
[1646867175114,0.02355552,2716.4,2716.1,0.00358156]
[1646867176111,0.02355552,2716.4,2715.6,0.07898168]
[1646867176313,0.02355552,2716.4,2716.1,0.00358156]
[1646867177356,0.0009395,2716.1,2715.5,1.52932563]
[1646867177560,0.0009395,2716.1,2715.6,0.0775947]
[1646867177762,0.0009395,2716.1,2715.8,0.07919086]
[1646867177961,0.0009395,2716.1,2715.4,0.05833599]
[1646867178162,0.0009395,2716.1,2715.6,0.07106084]
[1646867178362,0.0009395,2716.1,2715.7,1.52933225]
[1646867178563,0.0009395,2716.1,2715.8,1.52933225]
[1646867178764,0.0009395,2716.1,2715.6,0.00358178]
[1646867179163,0.0009395,2716.1,2715.6,0.09124227]
[1646867179365,0.0009395,2716.1,2715.7,1.52935231]
[1646867179563,0.0009395,2716.1,2715.8,0.0906238]
[1646867179964,0.0009395,2716.1,2715.7,0.00358173]
[1646867180609,0.0009395,2716.1,2715.7,1.53294358]
[1646867180809,0.0009395,2716.1,2715.8,1.52936185]
[1646867181011,0.0009395,2716.1,2715.9,0.07450469]
[1646867181211,0.0009395,2716.1,2715.8,0.00358171]
[1646867181911,0.0009395,2716.1,2715.8,0.07492399]
[1646867182112,0.0009395,2716.1,2715.9,1.52936328]
[1646867182513,0.0009395,2716.1,2715.9,1.52834093]
[1646867184286,0.02338823,2716.0,2715.9,1.52834093]
[1646867186284,0.02371142,2716.1,2716.0,0.04677646]
[1646867187084,0.02371142,2716.1,2716.0,11.64457646]
[1646867187286,0.02371142,2716.1,2716.0,0.04677646]
[1646867194466,0.0009395,2716.1,2716.0,0.04677646]
[1646867197214,0.11482522,2716.7,2716.0,0.04677646]
[1646867197416,4.7187716,2716.8,2716.0,0.04677646]
[1646867198017,5.6395816,2716.8,2716.0,0.04677646]
[1646867199275,0.00234028,2716.7,2716.0,0.04677646]
[1646867199469,0.00234028,2716.7,2716.1,0.029168]
[1646867199671,0.00234028,2716.7,2716.3,0.029168]
[1646867200069,8.414,2716.9,2716.3,0.029168]
[1646867200272,0.00234037,2716.7,2716.3,0.029168]
[1646867201272,8.414,2716.9,2716.3,0.029168]
[1646867201470,0.00379728,2716.7,2716.3,0.03296596]
[1646867202472,8.414,2716.9,2716.3,0.029168]
[1646867203020,0.00379728,2716.7,2716.3,0.03296596]
[1646867203715,8.414,2716.9,2716.3,0.029168]
[1646867203915,0.00379728,2716.7,2716.3,0.03296596]
[1646867204118,0.00379728,2716.7,2716.3,0.00379796]
[1646867204516,0.00379728,2716.7,2716.4,0.0785423]
[1646867204918,1.0,2716.9,2716.1,0.029168]
[1646867205119,0.00379732,2716.7,2716.3,0.003798]
[1646867205334,0.00379732,2716.7,2716.3,3.503798]
[1646867205520,0.00379732,2716.7,2716.4,1.52921351]
[1646867205717,0.00379732,2716.7,2716.5,0.07266716]
[1646867205917,0.00379732,2716.7,2716.3,0.032966]
[1646867206118,0.01933,2717.0,2716.4,1.52920765]
[1646867206319,0.00368345,2716.7,2716.5,0.07970474]
[1646867206618,0.00368345,2716.7,2716.3,0.03285211]
[1646867206862,0.00368345,2716.7,2716.4,1.52920377]
[1646867207063,0.00368345,2716.7,2716.5,0.07062516]
[1646867207262,4.95492,2717.1,2716.5,0.07062516]
[1646867207462,4.95492,2717.1,2716.3,0.029168]
[1646867207664,0.00368341,2716.7,2716.3,0.03285207]
[1646867207863,0.00368341,2716.7,2716.4,1.52922008]
[1646867208066,0.00368341,2716.7,2716.5,0.07318798]
[1646867208564,4.95492,2717.1,2716.3,0.029168]
[1646867208765,0.00368345,2716.7,2716.3,0.03285211]
[1646867208967,0.00368345,2716.7,2716.4,1.52920973]
[1646867209266,0.00368345,2716.7,2716.5,0.08503362]
[1646867209488,0.00368345,2716.7,2716.3,0.03285211]
[1646867209768,4.9356,2717.1,2716.5,0.09001366]
[1646867209969,0.00357616,2716.7,2716.5,0.11918166]
[1646867210168,0.00357616,2716.7,2716.5,0.029168]
[1646867210622,0.00357616,2716.7,2716.6,1.60249995]
[1646867210820,0.01430139,2717.4,2716.6,1.60249995]
[1646867211019,4.63941,2717.6,2716.7,5.14168525]
[1646867211219,0.01430139,2717.4,2716.8,0.08887586]
[1646867211619,0.01430139,2717.4,2716.7,0.029168]
[1646867211919,0.01430139,2717.4,2716.8,1.52904364]
[1646867212120,1.4485,2717.6,2716.9,3.5]
[1646867212319,1.4485,2717.6,2716.9,0.029168]
[1646867213522,1.1485,2717.6,2717.1,0.029168]
[1646867214772,0.00358595,2717.5,2717.1,0.029168]
[1646867215778,10.7054,2718.1,2717.1,0.029168]
[1646867215975,0.00358598,2717.4,2717.1,0.029168]
[1646867216974,12.92577,2718.1,2717.3,0.029168]
[1646867217177,0.00358548,2717.4,2717.3,0.029168]
[1646867217376,8.548e-05,2717.4,2717.3,0.029168]
[1646867217577,8.548e-05,2717.4,2717.3,14.82289945]
[1646867217777,0.01433976,2717.8,2717.5,11.5978]
[1646867218017,0.01433976,2717.8,2717.7,11.34199938]
[1646867218218,0.00096,2719.1,2717.7,15.20979938]
[1646867218422,0.92002,2718.9,2718.2,0.029168]
[1646867218718,0.01935,2719.1,2718.6,0.029168]
[1646867218921,0.01935,2719.3,2718.8,0.029168]
[1646867219117,1.26775,2719.4,2718.8,1.073768]
[1646867219319,0.009518,2719.5,2718.9,0.08542824]
[1646867219520,0.009518,2719.5,2719.0,0.029168]
[1646867219720,0.00233805,2719.2,2719.0,0.029168]
[1646867220421,0.91975,2719.7,2719.0,0.029168]
[1646867220422,0.91989,2719.5,2719.0,0.029168]
[1646867220819,0.00380721,2719.2,2718.8,0.029168]
[1646867221025,0.00380721,2719.2,2718.1,0.25917036]
[1646867221221,0.00380721,2719.2,2718.4,0.029168]
[1646867221421,0.00380721,2719.2,2718.5,0.1839]
[1646867221621,2.13987,2719.4,2718.5,0.1839]
[1646867222064,0.00380738,2718.9,2718.5,0.1839]
[1646867222464,0.8890246,2719.3,2718.5,0.1839]
[1646867223063,0.92,2719.1,2718.5,0.1839]
[1646867223262,1.22,2719.1,2718.5,0.1839]
[1646867223465,1.08888112,2718.7,2718.5,0.1839]
[1646867224266,1.08888112,2718.7,2718.4,0.029168]
[1646867225513,1.08888112,2718.7,2718.4,0.03297589]
[1646867226119,1.08888112,2718.7,2718.4,0.00380789]
[1646867226320,0.9203,2718.5,2718.4,0.00380789]
[1646867226515,0.9203,2718.5,2717.9,0.029168]
[1646867226717,0.92026,2718.4,2717.6,0.16736797]
[1646867227129,1.22026,2718.4,2717.6,0.16736797]
[1646867227619,0.3,2718.0,2717.6,0.16736797]
[1646867227820,1.22026,2718.4,2717.6,0.16736797]
[1646867228020,1.22026,2718.4,2717.9,0.00380819]
[1646867228521,0.95941795,2718.3,2717.9,0.00380819]
[1646867228925,0.95941795,2718.3,2717.8,0.029168]
[1646867229123,0.95941795,2718.3,2718.0,0.00380814]
[1646867229370,1.25941795,2718.3,2718.0,0.00380814]
[1646867229770,2.44391795,2718.3,2718.0,0.00380814]
[1646867230074,4.42034,2718.2,2717.4,0.00071452]
[1646867230272,0.94061,2718.1,2717.4,0.00071452]
[1646867230570,0.94061,2718.1,2718.0,0.00380811]
[1646867231275,0.02015,2718.1,2717.4,0.00071452]
[1646867231476,0.92047,2717.9,2717.4,0.00071452]
[1646867231670,0.02032,2717.8,2717.4,0.00071452]
[1646867232671,1.19251557,2717.7,2717.4,0.00071452]
[1646867232873,1.19251557,2717.7,2717.5,0.00369415]
[1646867233114,2.11299557,2717.7,2717.5,0.00369415]
[1646867233314,2.41299557,2717.7,2717.5,0.00369415]
[1646867233514,2.41299557,2717.7,2717.5,0.03286215]
[1646867233720,2.41299557,2717.7,2717.5,0.029168]
[1646867234120,2.41299557,2717.7,2717.5,0.03286215]
[1646867235026,2.41299557,2717.7,2717.5,0.029168]
[1646867235220,2.41299557,2717.7,2717.5,0.03286215]
[1646867235419,2.41142496,2717.7,2717.5,0.03286215]
[1646867236120,2.41142496,2717.7,2717.5,0.029168]
[1646867236320,2.41142496,2717.7,2717.5,0.03275438]
[1646867237264,2.41142496,2717.7,2717.5,0.029168]
[1646867237663,2.41142496,2717.7,2717.5,0.03275438]
[1646867238466,2.41142496,2717.7,2717.5,0.029168]
[1646867238864,2.41142496,2717.7,2717.5,0.03275438]
[1646867239668,2.41142496,2717.7,2717.5,0.029168]
[1646867240069,2.41142496,2717.7,2717.5,0.03276165]
[1646867240730,2.41142496,2717.7,2717.5,0.00359365]
[1646867240923,2.41142496,2717.7,2717.4,0.02988252]
[1646867241323,2.41142496,2717.7,2717.5,0.00359365]
[1646867241524,2.41142496,2717.7,2717.5,0.03276165]
[1646867242127,2.41142496,2717.7,2717.5,0.029168]
[1646867242422,2.41142496,2717.7,2717.5,0.00359365]
[1646867242625,2.41142496,2717.7,2717.2,0.01224956]
[1646867245970,2.41142496,2717.7,2717.0,0.04576176]
[1646867246172,2.41142496,2717.7,2717.2,0.07175636]
[1646867246571,2.41142496,2717.7,2717.0,0.08127146]
[1646867247174,2.41142496,2717.7,2717.2,0.00380855]
[1646867248320,2.41142496,2717.7,2717.3,0.00380849]
[1646867249319,2.41142496,2717.7,2717.1,0.07224352]
[1646867249521,2.41142496,2717.7,2716.9,0.07832869]
[1646867249719,2.41142496,2717.7,2716.8,0.83956772]
[1646867249720,2.41142496,2717.7,2717.1,0.07144176]
[1646867249924,2.41142496,2717.7,2716.8,0.83956772]
[1646867249925,2.41142496,2717.7,2717.3,0.0688834]
[1646867250322,2.41142496,2717.7,2716.9,0.07194655]
[1646867250522,2.41142496,2717.7,2717.0,1.52893447]
[1646867250722,2.41142496,2717.7,2717.1,1.52893447]
[1646867250923,2.41142496,2717.7,2717.2,1.52893447]
[1646867251122,2.41142496,2717.7,2716.8,0.83956772]
[1646867251322,2.41142496,2717.7,2716.9,1.52894842]
[1646867251524,2.41142496,2717.7,2717.0,0.0885002]
[1646867251791,2.41142496,2717.7,2717.2,0.0868035]
[1646867251982,2.41142496,2717.7,2717.2,0.00373716]
[1646867252581,2.41142496,2717.7,2717.3,0.07213746]
[1646867252780,2.41142496,2717.7,2717.2,0.00373716]
[1646867252979,2.41142496,2717.7,2717.1,0.0693929]
[1646867253193,2.41142496,2717.7,2717.3,0.07667285]
[1646867253379,2.41142496,2717.7,2717.3,0.00373719]
[1646867254182,2.41142496,2717.7,2717.2,1.52897659]
[1646867254387,2.41142496,2717.7,2717.3,0.00373719]
[1646867255288,2.41142496,2717.7,2717.2,0.0706319]
[1646867255516,1.21890939,2717.7,2717.3,1.52896461]
[1646867255717,1.21890939,2717.7,2717.3,1.53255066]
[1646867256517,1.21890939,2717.7,2717.3,2.66211544]
[1646867256718,1.21890939,2717.7,2717.4,5.1191816]
[1646867256917,1.21890939,2717.7,2717.5,1.52896461]
[1646867257119,1.21890939,2717.7,2717.5,1.6116695]
[1646867257324,1.21890939,2717.7,2717.6,1.52896461]
[1646867257722,1.21890939,2717.7,2717.5,0.08270489]
[1646867257919,1.21890939,2717.7,2717.0,0.08098181]
[1646867258119,1.21890939,2717.7,2717.3,0.00358617]
[1646867258519,1.21890939,2717.7,2717.3,1.60872745]
[1646867258719,1.21890939,2717.7,2717.4,1.52887104]
[1646867258919,1.21890939,2717.7,2716.9,3.5]
[1646867259119,1.19442114,2717.3,2717.0,1.52896371]
[1646867259372,2.11489114,2717.3,2717.1,1.52896371]
[1646867259574,2.11489114,2717.3,2717.2,1.52896371]
[1646867259773,1.19442114,2717.3,2717.2,1.52896371]
[1646867260174,1.19442114,2717.3,2716.9,5.02896371]
[1646867260377,1.19442114,2717.3,2717.1,0.00359404]
[1646867260571,1.19442114,2717.3,2717.1,1.53255775]
[1646867260773,2.11488114,2717.3,2717.1,1.53255775]
[1646867260976,0.92046,2717.3,2717.1,1.53255775]
[1646867261275,0.92046,2717.3,2717.1,1.52896371]
[1646867261674,0.92046,2717.3,2717.1,1.53255777]
[1646867261876,1.09468776,2717.2,2717.1,1.53255777]
[1646867262074,2.14094,2717.4,2717.2,2.13622139]
[1646867262275,3.09816914,2717.4,2717.3,1.52897483]
[1646867262674,2.79816914,2717.4,2717.3,1.52897483]
[1646867263120,1.84094,2717.4,2717.3,1.52897483]
[1646867263317,1.22046,2717.5,2717.3,1.52897483]
[1646867264119,1.22046,2717.5,2717.3,1.53256826]
[1646867264523,1.22046,2717.5,2717.3,1.61039624]
[1646867264723,1.22046,2717.5,2717.4,1.52897483]
[1646867265926,1.22046,2717.5,2717.4,6.13670065]
[1646867266325,1.22046,2717.5,2717.4,2.63670065]
[1646867267775,1.22046,2717.5,2717.4,1.52897483]
[1646867278223,0.04317679,2717.4,2717.2,0.53622139]
[1646867278425,0.04317679,2717.4,2717.3,1.53273146]
[1646867278627,0.04317679,2717.4,2717.2,0.35352139]
[1646867278820,0.04317679,2717.4,2716.4,0.67777737]
[1646867278821,4.08266,2717.3,2716.4,0.67777737]
[1646867279021,0.92085,2717.0,2716.3,0.67777737]
[1646867279223,1.0431839,2716.5,2716.2,0.67777737]
[1646867279428,1.0431839,2716.5,2716.1,0.67777737]
[1646867280027,1.9640439,2716.5,2716.0,0.86177737]
[1646867280230,1.9640439,2716.5,2716.1,0.67777737]
[1646867280430,1.9640439,2716.5,2715.9,0.86167737]
[1646867280431,3.5,2716.4,2715.9,0.86167737]
[1646867280627,1.9640439,2716.5,2715.9,0.67777737]
[1646867280628,1.19753366,2716.0,2715.9,0.67777737]
[1646867281331,1.19753366,2716.0,2715.8,0.67777737]
[1646867281790,1.25189161,2716.0,2715.7,0.67777737]
[1646867281985,3.12324961,2716.0,2715.6,0.67777737]
[1646867282198,1.49157393,2716.0,2715.8,0.00359685]
[1646867282382,2.49157393,2716.0,2715.8,0.00359685]
[1646867282584,1.49157393,2716.0,2715.8,0.00359685]
[1646867283081,1.49157393,2716.0,2715.6,0.67777737]
[1646867283281,1.49157393,2716.0,2715.8,0.00359685]
[1646867284187,1.49157393,2716.0,2715.5,0.67777737]
[1646867284188,1.46240593,2716.0,2715.5,0.67777737]
[1646867284384,0.21051432,2716.0,2715.8,0.00359622]
[1646867285089,0.92108,2716.1,2715.8,0.00359622]
[1646867285521,0.92108,2716.1,2715.7,0.95242752]
[1646867285724,0.92108,2716.1,2715.8,0.00359622]
[1646867286532,1.84177,2716.3,2715.8,0.0793307]
[1646867287027,0.92079,2716.4,2715.8,0.76070426]
[1646867287228,0.92079,2716.4,2715.9,0.07849668]
[1646867288028,0.92079,2716.4,2716.0,0.00359407]
[1646867289038,1.22079,2716.4,2715.9,0.07849668]
[1646867289281,1.22079,2716.4,2716.1,0.00359405]
[1646867289687,0.02102,2716.5,2716.1,12.45601829]
[1646867289886,0.029168,2717.1,2716.2,0.07974326]
[1646867290096,0.01933,2717.3,2716.5,11.5978]
[1646867290288,0.01933,2717.3,2716.9,11.23]
[1646867290486,1.184268,2717.7,2717.1,0.07073634]
[1646867290487,0.029168,2717.7,2717.1,0.07073634]
[1646867290687,2.9464389,2718.2,2717.1,0.07073634]
[1646867290688,0.01436524,2718.2,2717.2,0.09026508]
[1646867290892,0.92026,2718.1,2717.4,0.08745522]
[1646867291085,0.92026,2718.1,2717.4,14.81745522]
[1646867291284,0.92026,2718.1,2717.5,0.06891366]
[1646867291485,0.92026,2718.1,2717.7,0.97101047]
[1646867292691,0.92026,2718.1,2717.5,0.06891366]
[1646867292889,0.92026,2718.1,2717.2,6.03596682]
[1646867293138,0.93959,2718.1,2717.3,0.08333735]
[1646867293321,0.92026,2718.1,2717.3,0.08333735]
[1646867293924,1.08674524,2717.8,2717.3,0.08333735]
[1646867294126,0.9205,2717.7,2717.3,0.08333735]
[1646867294332,0.9205,2717.7,2717.3,0.09395263]
[1646867294528,1.2205,2717.7,2717.3,0.09395263]
[1646867296229,1.2205,2717.7,2717.4,0.07636325]
[1646867298077,0.3,2717.7,2717.4,0.07636325]
[1646867298278,0.92031,2718.0,2717.4,0.07636325]
[1646867298679,0.92031,2718.0,2717.6,0.0849849]
[1646867298878,0.3,2718.1,2717.7,1.52865423]
[1646867299078,1.31439013,2718.2,2717.7,1.52865423]
[1646867299279,1.07113605,2718.1,2717.7,1.52865423]
[1646867301123,1.07113605,2718.1,2717.6,0.01405751]
[1646867301421,1.07113605,2718.1,2717.7,1.52867789]
[1646867302221,1.07113605,2718.1,2717.6,0.01405751]
[1646867304381,0.0227542,2718.0,2717.8,0.01204813]
[1646867304778,0.0227542,2718.0,2717.8,0.01101372]
[1646867308033,1.90650196,2718.0,2717.8,0.01101372]
[1646867308423,0.04425309,2717.9,2717.8,0.01101372]
[1646867309728,0.06705172,2717.9,2717.2,0.00359407]
[1646867309926,1.23421711,2717.4,2717.2,0.00359407]
[1646867310128,0.92045,2717.7,2717.5,0.39646735]
[1646867311428,0.96184155,2717.6,2717.5,0.39646735]
[1646867311635,0.96184155,2717.6,2717.2,0.00359383]
[1646867311636,0.04396081,2717.4,2717.2,0.00359383]
[1646867311880,5.38532081,2717.4,2716.8,1.52893126]
[1646867312077,3.0,2717.2,2716.0,0.67777737]
[1646867312283,0.029168,2716.8,2715.8,0.67777737]
[1646867312481,1.03161845,2716.0,2715.7,0.67777737]
[1646867312879,1.03161845,2716.0,2715.6,0.67777737]
[1646867313078,1.95264845,2716.0,2715.6,0.67777737]
[1646867313282,1.95264845,2716.0,2715.7,0.00359425]
[1646867314280,1.95264845,2716.0,2715.5,0.67777737]
[1646867314484,0.029168,2716.3,2715.7,0.00359696]
[1646867314682,0.029168,2716.3,2715.7,0.68137433]
[1646867314885,0.029168,2716.3,2715.8,0.07538716]
[1646867316327,0.029168,2716.3,2715.5,0.67777737]
[1646867317026,0.92107,2716.2,2715.4,0.67777737]
[1646867317227,1.20706389,2716.1,2715.4,0.67777737]
[1646867318028,1.20706389,2716.1,2715.6,0.0038086]
[1646867318827,1.20706389,2716.1,2716.0,0.01405552]
[1646867320480,1.96524616,2716.2,2716.0,0.01405552]
[1646867320880,0.96524616,2716.2,2716.0,0.01405552]
[1646867321682,0.96524616,2716.2,2716.0,0.01786393]
[1646867322585,0.96524616,2716.2,2716.0,0.01405552]
[1646867322782,0.96524616,2716.2,2716.0,0.01786393]
[1646867323621,0.04417616,2716.2,2716.0,0.01786393]
[1646867323821,0.04417616,2716.2,2716.0,0.01405552]
[1646867324224,0.04417616,2716.2,2716.0,0.00380841]
[1646867325026,0.04417616,2716.2,2715.9,0.07167801]
[1646867325424,0.04417616,2716.2,2716.0,0.00380841]
[1646867326225,0.04417616,2716.2,2715.7,0.09078926]
[1646867326437,0.04417616,2716.2,2716.0,0.00369415]
[1646867327478,0.04417616,2716.2,2715.7,0.09078926]
[1646867327678,0.04417616,2716.2,2716.0,0.00369415]
[1646867328679,0.04417616,2716.2,2715.7,0.09078926]
[1646867328881,0.04417616,2716.2,2716.0,0.00369415]
[1646867329885,0.04417616,2716.2,2715.9,0.08233145]
[1646867330087,1.47518533,2716.7,2716.0,2.103359]
[1646867330286,1.47518533,2716.7,2716.1,3.5]
[1646867330537,1.47518533,2716.7,2716.1,1.07696653]
[1646867330723,1.47518533,2716.7,2716.2,3.5]
[1646867330925,0.92073,2716.5,2716.2,3.5]
[1646867331125,1.47518533,2716.7,2716.2,3.5]
[1646867331435,1.47518533,2716.7,2716.3,0.00335886]
[1646867332024,1.47518533,2716.7,2716.3,1.53256901]
[1646867332224,1.47518533,2716.7,2716.3,1.52921015]
[1646867332429,1.47518533,2716.7,2716.4,0.00335881]
[1646867333428,1.47518533,2716.7,2716.3,1.52921015]
[1646867333628,1.47518533,2716.7,2716.4,0.00336254]
[1646867334681,1.47518533,2716.7,2716.3,1.52921015]
[1646867334880,1.47518533,2716.7,2716.4,0.00338136]
[1646867335882,1.47518533,2716.7,2716.3,1.52921015]
[1646867336082,1.47518533,2716.7,2716.4,0.00338136]
[1646867337086,1.47518533,2716.7,2716.3,1.52921015]
[1646867337285,1.47518533,2716.7,2716.4,0.00338013]
[1646867338327,1.47518533,2716.7,2716.1,1.52921015]
[1646867338526,1.47518533,2716.7,2716.4,0.00337841]
[1646867338935,1.47518533,2716.7,2716.4,1.53258856]
[1646867339128,1.47518533,2716.7,2716.5,1.52921015]
[1646867339325,1.47518533,2716.7,2716.6,1.52921015]
[1646867339726,1.47518533,2716.7,2716.4,1.53258856]
[1646867339928,1.47518533,2716.7,2716.5,1.52921015]
[1646867340130,1.47518533,2716.7,2716.6,1.52921015]
[1646867340629,1.47518533,2716.7,2716.4,1.52921015]
[1646867340835,1.22066,2716.9,2716.5,0.00337855]
[1646867341873,1.22066,2716.9,2716.4,1.52921015]
[1646867342074,1.22066,2716.9,2716.6,0.00337873]
[1646867342477,1.22066,2716.9,2716.6,1.53258888]
[1646867342677,1.22066,2716.9,2716.7,1.52921015]
[1646867342876,1.22066,2716.9,2716.8,1.52921015]
[1646867343078,1.22066,2716.9,2716.4,1.52921015]
[1646867343278,1.22066,2716.9,2716.6,0.00337871]
[1646867343482,1.22066,2716.9,2716.4,1.48258886]
[1646867343676,1.22066,2716.9,2716.5,0.08050579]
[1646867344080,0.029168,2716.8,2716.5,0.08050579]
[1646867344379,1.84158,2716.7,2716.5,0.08050579]
[1646867344580,1.84158,2716.7,2716.1,4.57192196]
[1646867344780,1.870748,2716.7,2716.2,0.07842224]
[1646867345382,2.791608,2716.7,2716.2,0.07842224]
[1646867346226,2.791608,2716.7,2716.0,0.07982775]
[1646867346429,0.92087,2716.4,2716.0,0.07982775]
[1646867348029,0.92087,2716.4,2716.1,0.00358031]
[1646867349031,0.92087,2716.4,2716.1,0.07457504]
[1646867349273,0.92087,2716.4,2716.1,0.07819795]
[1646867350177,0.25060197,2716.5,2716.1,0.07457504]
[1646867350577,0.25060197,2716.5,2716.1,0.07819795]
[1646867350978,0.92087,2716.4,2716.1,0.07819795]
[1646867351378,0.92087,2716.4,2716.1,0.07457504]
[1646867351878,0.92087,2716.4,2716.1,0.07819795]
[1646867352683,0.92087,2716.4,2716.1,0.07457504]
[1646867352882,0.92087,2716.4,2716.1,3.57803552]
[1646867353123,0.92087,2716.4,2716.1,4.25581289]
[1646867353324,0.92087,2716.4,2716.1,0.75581289]
[1646867353523,0.92087,2716.4,2716.2,4.17777737]
[1646867353726,0.92087,2716.4,2716.2,0.67777737]
[1646867354527,2.054648,2716.7,2716.2,1.66147798]
[1646867354528,0.9207,2716.6,2716.2,1.66147798]
[1646867355330,0.9207,2716.6,2716.3,0.0034604]
[1646867355732,0.9207,2716.6,2716.3,0.68123777]
[1646867356336,0.9207,2716.6,2716.3,0.67777737]
[1646867356532,0.9207,2716.6,2716.3,0.68115068]
[1646867357183,0.9207,2716.6,2716.4,3.5]
[1646867357381,0.9207,2716.6,2716.3,0.67777737]
[1646867357782,0.9207,2716.6,2716.4,0.67777737]
[1646867358782,0.9207,2716.6,2716.4,0.68115066]
[1646867359785,0.9207,2716.6,2716.3,0.67777737]
[1646867359985,0.949868,2716.6,2716.3,0.67777737]
[1646867360186,0.949868,2716.6,2716.4,0.00337947]
[1646867361032,0.949868,2716.6,2716.2,0.67777737]
[1646867361233,0.949868,2716.6,2716.4,0.00337947]
[1646867362235,0.949868,2716.6,2716.2,0.67777737]
[1646867362433,0.949868,2716.6,2716.4,0.00337947]
[1646867363435,0.949868,2716.6,2716.3,0.67777737]
[1646867363634,0.949868,2716.6,2716.4,0.00337869]
[1646867364678,0.949868,2716.6,2716.3,0.67777737]
[1646867364880,0.949868,2716.6,2716.4,0.00337869]
[1646867365782,0.949868,2716.6,2716.3,0.67777737]
[1646867366185,0.949868,2716.6,2716.4,0.00337869]
[1646867366582,0.9207,2716.6,2716.4,0.00337869]
[1646867366786,0.029168,2716.7,2716.4,2.21044411]
[1646867366787,0.329168,2716.7,2716.4,2.21044411]
[1646867366985,0.3,2716.7,2716.4,2.20706542]
[1646867367183,0.029168,2716.8,2716.4,2.20706542]
[1646867367386,0.029168,2716.8,2716.4,2.21044421]
[1646867367583,0.029168,2716.8,2716.5,5.02928805]
[1646867367784,0.029168,2716.9,2716.6,1.52928805]
[1646867368046,0.029168,2716.9,2716.7,1.52928805]
[1646867368250,0.029168,2716.9,2716.8,1.52928805]
[1646867368452,1.26452987,2717.0,2716.5,1.75033394]
[1646867368651,1.26452987,2717.0,2716.6,1.52928805]
[1646867368851,1.26452987,2717.0,2716.6,2.20706542]
[1646867369957,1.26452987,2717.0,2716.7,1.52928805]
[1646867370157,1.26452987,2717.0,2716.8,1.52928805]
[1646867370357,1.870508,2717.1,2717.0,0.36653897]
[1646867370556,1.870508,2717.1,2717.0,1.89582702]
[1646867370557,1.84134,2717.1,2717.0,1.89582702]
[1646867370761,1.84107,2717.4,2717.1,0.07971521]
[1646867370959,0.1839,2717.8,2717.3,1.09371016]
[1646867371161,0.01350872,2717.9,2717.7,0.029168]
[1646867371359,0.01350872,2717.9,2717.8,1.6365352]
[1646867371561,0.01350872,2717.9,2717.8,5.1365352]
[1646867371789,0.1839,2718.1,2717.8,5.1365352]
[1646867371790,1.10412,2718.1,2717.8,5.1365352]
[1646867372083,1.10412,2718.1,2718.0,0.07919855]
[1646867372276,0.92022,2718.1,2718.0,1.6084866]
[1646867372480,1.84272819,2718.2,2718.1,0.07074055]
[1646867372686,1.84272819,2718.2,2717.8,0.07041744]
[1646867372883,1.12160186,2718.1,2717.4,0.07170078]
[1646867373084,0.92053,2717.9,2717.5,1.52879994]
[1646867373283,0.92053,2717.9,2717.0,0.36653897]
[1646867373284,6.5,2717.8,2717.0,0.36653897]
[1646867373485,6.5,2717.8,2717.1,1.52903456]
[1646867373486,0.6756169,2717.7,2717.1,1.52903456]
[1646867373685,3.54776363,2717.6,2717.1,1.52903456]
[1646867373890,11.23,2717.3,2716.5,0.029168]
[1646867374086,3.0,2716.6,2716.0,0.67777737]
[1646867374287,3.0,2716.6,2715.8,1.0875986]
[1646867374288,0.3,2716.5,2715.8,0.86167737]
[1646867374588,4.3,2716.6,2715.8,0.86167737]
[1646867374784,4.3,2716.6,2715.8,0.1839]
[1646867375184,4.3,2716.6,2715.8,0.25324595]
[1646867375387,0.88591918,2716.1,2715.8,0.25324595]
[1646867375628,1.6748933,2716.1,2715.8,0.1839]
[1646867376230,1.6748933,2716.1,2715.2,0.75552358]
[1646867376428,3.5,2716.0,2715.2,0.75552358]
[1646867376629,0.92138,2715.7,2715.2,0.75552358]
[1646867376833,1.04055448,2715.5,2715.2,0.07774621]
[1646867377433,1.04055448,2715.5,2715.1,0.6924561]
[1646867377834,1.04055448,2715.5,2715.1,0.67777737]
[1646867378034,0.92141,2715.5,2715.2,0.00357004]
[1646867378234,1.22141,2715.5,2715.2,0.68134741]
[1646867378436,0.92141,2715.4,2715.2,0.00357004]
[1646867379038,0.92141,2715.4,2715.1,0.67777737]
[1646867379287,0.92141,2715.4,2715.2,0.00350124]
[1646867380289,0.92141,2715.4,2715.1,0.06958988]
[1646867380488,0.92141,2715.4,2715.2,0.00350124]
[1646867380891,0.92141,2715.5,2715.2,0.00350124]
[1646867381090,2.11378,2715.8,2715.2,0.00350124]
[1646867381291,2.11378,2715.8,2715.2,0.68127861]
[1646867381292,1.1927,2715.8,2715.2,0.68127861]
[1646867381489,0.1841,2715.9,2715.3,0.75960733]
[1646867381693,0.1841,2715.9,2715.4,0.07825385]
[1646867382006,2.7217,2716.0,2715.6,0.87208138]
[1646867382191,1.3768,2716.3,2715.7,0.0803153]
[1646867382396,1.1927,2716.3,2715.7,0.0803153]
[1646867383033,1.1927,2716.3,2715.9,0.00337139]
[1646867383034,0.92093,2716.2,2715.9,0.00337139]
[1646867383233,1.22093,2716.2,2715.9,0.00337139]
[1646867383932,1.22093,2716.2,2715.5,0.08067524]
[1646867384132,1.22093,2716.2,2715.9,0.00337136]
[1646867384333,2.14198,2716.2,2715.9,0.00337136]
[1646867385135,2.14198,2716.2,2715.5,0.08067524]
[1646867385335,2.14198,2716.2,2715.9,0.00337524]
[1646867386334,2.14198,2716.2,2715.5,0.08067524]
[1646867386535,2.14198,2716.2,2715.9,0.00338218]
[1646867387378,2.14198,2716.2,2715.5,0.08067524]
[1646867387781,2.14198,2716.2,2715.9,0.00338218]
[1646867388781,2.14198,2716.2,2715.5,0.08067524]
[1646867388983,2.14198,2716.2,2715.9,0.00338163]
[1646867389183,3.5,2716.1,2715.9,0.00338163]
[1646867389384,1.84253,2716.0,2715.9,0.00338163]
[1646867389884,1.84253,2716.0,2715.3,0.07921476]
[1646867390087,1.88882218,2715.8,2715.3,0.07921476]
[1646867390288,3.02097468,2715.8,2715.2,0.08399981]
[1646867390534,3.32097468,2715.8,2715.2,0.08399981]
[1646867390724,4.32097468,2715.8,2715.2,0.08399981]
[1646867390926,3.32097468,2715.8,2715.1,0.01352728]
[1646867391132,4.32097468,2715.8,2715.0,0.07480258]
[1646867391329,4.32097468,2715.8,2715.4,0.00338114]
[1646867391728,0.92129,2715.7,2715.4,0.00338114]
[1646867392328,1.3,2715.8,2715.0,0.07480258]
[1646867392530,1.3,2715.8,2715.4,0.00338103]
[1646867392733,0.92128,2715.9,2715.4,0.00338103]